[Event "Titled Tuesday Blitz April 25 Early 2023"]
[White "Samunenkov, Ihor"]
[Black "Al-Tarboush, Ward"]
[WhiteFideId "14187086"]
[BlackFideId "7601450"]
[WhiteElo "2457"]
[BlackElo "2265"]
[Result "1/2-1/2"]
[Round "09"]
[TimeControl "180+2"]
[Date "2023.04.25"]
[WhiteClock "0:00:06"]
[BlackClock "0:00:06"]

1. d4 {[%clk 0:03:00]}  Nf6 {[%clk 0:02:59]} 2. c4 {[%clk 0:03:00]}  b6 {[%clk 0:02:59]} 3. f3 {[%clk 0:02:58]}  Nc6 {[%clk 0:02:56]} 4. Nc3 {[%clk 0:02:57]}  d5 {[%clk 0:02:52]} 5. cxd5 {[%clk 0:02:54]}  Nxd5 {[%clk 0:02:52]} 6. e4 {[%clk 0:02:54]}  Nxc3 {[%clk 0:02:50]} 7. bxc3 {[%clk 0:02:55]}  e6 {[%clk 0:02:50]} 8. Bb5 {[%clk 0:02:52]}  Bd7 {[%clk 0:02:49]} 9. Ne2 {[%clk 0:02:52]}  Bd6 {[%clk 0:02:49]} 10. O-O {[%clk 0:02:51]}  O-O {[%clk 0:02:49]} 11. Kh1 {[%clk 0:02:43]}  Na5 {[%clk 0:02:41]} 12. Bd3 {[%clk 0:02:41]}  c5 {[%clk 0:02:40]} 13. e5 {[%clk 0:02:30]}  Bc7 {[%clk 0:02:39]} 14. Qc2 {[%clk 0:02:19]}  h6 {[%clk 0:02:34]} 15. Nf4 {[%clk 0:02:05]}  Bc6 {[%clk 0:02:28]} 16. Qf2 {[%clk 0:02:03]}  cxd4 {[%clk 0:02:23]} 17. cxd4 {[%clk 0:02:03]}  Qd7 {[%clk 0:02:02]} 18. Rd1 {[%clk 0:01:27]}  Ba4 {[%clk 0:01:59]} 19. Re1 {[%clk 0:01:22]}  Rad8 {[%clk 0:01:59]} 20. Be3 {[%clk 0:01:02]}  Bb5 {[%clk 0:01:58]} 21. Bb1 {[%clk 0:00:58]}  Nc4 {[%clk 0:01:57]} 22. Qc2 {[%clk 0:00:45]}  g6 {[%clk 0:01:50]} 23. Bf2 {[%clk 0:00:26]}  Na3 {[%clk 0:01:48]} 24. Qd2 {[%clk 0:00:23]}  Nxb1 {[%clk 0:01:47]} 25. Raxb1 {[%clk 0:00:24]}  Bc6 {[%clk 0:01:45]} 26. Rbc1 {[%clk 0:00:17]}  Bb7 {[%clk 0:01:44]} 27. Bh4 {[%clk 0:00:16]}  Rc8 {[%clk 0:01:34]} 28. Bf6 {[%clk 0:00:09]}  Kh7 {[%clk 0:01:19]} 29. Qf2 {[%clk 0:00:06]}  Bd8 {[%clk 0:01:16]} 30. Rxc8 {[%clk 0:00:06]}  Bxc8 {[%clk 0:01:15]} 31. Nh3 {[%clk 0:00:06]}  Bxf6 {[%clk 0:01:14]} 32. exf6 {[%clk 0:00:07]}  Qd5 {[%clk 0:01:10]} 33. Re5 {[%clk 0:00:04]}  Qc4 {[%clk 0:01:06]} 34. Qh4 {[%clk 0:00:04]}  Qc1+ {[%clk 0:01:00]} 35. Re1 {[%clk 0:00:03]}  Qd2 {[%clk 0:01:01]} 36. Qf2 {[%clk 0:00:02]}  Qxf2 {[%clk 0:01:00]} 37. Nxf2 {[%clk 0:00:03]}  Rd8 {[%clk 0:01:00]} 38. Rc1 {[%clk 0:00:02]}  g5 {[%clk 0:00:43]} 39. h3 {[%clk 0:00:02]}  Kg6 {[%clk 0:00:43]} 40. Ng4 {[%clk 0:00:02]}  Ba6 {[%clk 0:00:37]} 41. Rc7 {[%clk 0:00:01]}  Rxd4 {[%clk 0:00:32]} 42. Rxa7 {[%clk 0:00:02]}  Bc4 {[%clk 0:00:31]} 43. Ra8 {[%clk 0:00:02]}  h5 {[%clk 0:00:23]} 44. Ne5+ {[%clk 0:00:02]}  Kxf6 {[%clk 0:00:23]} 45. Nxc4 {[%clk 0:00:02]}  Rxc4 {[%clk 0:00:23]} 46. Rb8 {[%clk 0:00:03]}  Rb4 {[%clk 0:00:21]} 47. Kh2 {[%clk 0:00:02]}  h4 {[%clk 0:00:20]} 48. a4 {[%clk 0:00:02]}  Ke5 {[%clk 0:00:18]} 49. Rb7 {[%clk 0:00:03]}  f6 {[%clk 0:00:18]} 50. Rb8 {[%clk 0:00:02]}  Kf5 {[%clk 0:00:18]} 51. Rb7 {[%clk 0:00:03]}  e5 {[%clk 0:00:18]} 52. Rb8 {[%clk 0:00:03]}  Kf4 {[%clk 0:00:15]} 53. Rf8 {[%clk 0:00:02]}  f5 {[%clk 0:00:15]} 54. Rb8 {[%clk 0:00:02]}  e4 {[%clk 0:00:14]} 55. fxe4 {[%clk 0:00:03]}  fxe4 {[%clk 0:00:14]} 56. Rf8+ {[%clk 0:00:03]}  Ke3 {[%clk 0:00:15]} 57. Rf6 {[%clk 0:00:03]}  Kd2 {[%clk 0:00:14]} 58. Rd6+ {[%clk 0:00:03]}  Ke2 {[%clk 0:00:11]} 59. g3 {[%clk 0:00:02]}  e3 {[%clk 0:00:09]} 60. gxh4 {[%clk 0:00:02]}  gxh4 {[%clk 0:00:10]} 61. Kg2 {[%clk 0:00:03]}  Rxa4 {[%clk 0:00:08]} 62. Rxb6 {[%clk 0:00:03]}  Ra2 {[%clk 0:00:09]} 63. Re6 {[%clk 0:00:02]}  Kd3+ {[%clk 0:00:08]} 64. Kf3 {[%clk 0:00:03]}  Rf2+ {[%clk 0:00:08]} 65. Kg4 {[%clk 0:00:04]}  e2 {[%clk 0:00:08]} 66. Kxh4 {[%clk 0:00:03]}  Rf4+ {[%clk 0:00:08]} 67. Kg3 {[%clk 0:00:03]}  Rf8 {[%clk 0:00:04]} 68. h4 {[%clk 0:00:01]}  Rg8+ {[%clk 0:00:04]} 69. Kf4 {[%clk 0:00:01]}  Rf8+ {[%clk 0:00:03]} 70. Kg5 {[%clk 0:00:02]}  Rf3 {[%clk 0:00:04]} 71. Rxe2 {[%clk 0:00:01]}  Kxe2 {[%clk 0:00:04]} 72. h5 {[%clk 0:00:02]}  Rg3+ {[%clk 0:00:05]} 73. Kf4 {[%clk 0:00:01]}  Rg1 {[%clk 0:00:04]} 74. Kf5 {[%clk 0:00:01]}  Kf3 {[%clk 0:00:03]} 75. h6 {[%clk 0:00:02]}  Rh1 {[%clk 0:00:03]} 76. Kg6 {[%clk 0:00:02]}  Kf4 {[%clk 0:00:03]} 77. h7 {[%clk 0:00:03]}  Ke5 {[%clk 0:00:03]} 78. Kg7 {[%clk 0:00:02]}  Rg1+ {[%clk 0:00:04]} 79. Kf7 {[%clk 0:00:03]}  Rf1+ {[%clk 0:00:04]} 80. Kg7 {[%clk 0:00:04]}  Rg1+ {[%clk 0:00:05]} 81. Kf7 {[%clk 0:00:04]}  Rh1 {[%clk 0:00:05]} 82. Kg7 {[%clk 0:00:05]}  Kf5 {[%clk 0:00:06]} 83. h8=Q {[%clk 0:00:06]}  Rxh8 {[%clk 0:00:06]} 84. Kxh8 {[%clk 0:00:06]} 1/2-1/2


[Site "https://www.chess.com"]

[Event "Titled Tuesday Blitz April 25 Early 2023"]
[White "MKlose11"]
[Black "Lewicki, Miroslaw"]
[BlackFideId "1113380"]
[WhiteElo "2553"]
[BlackElo "2212"]
[Result "0-1"]
[Round "09"]
[TimeControl "180+2"]
[Date "2023.04.25"]
[WhiteClock "0:00:13"]
[BlackClock "0:01:16"]

1. e4 {[%clk 0:02:49]}  b6 {[%clk 0:02:57]} 2. d4 {[%clk 0:02:48]}  Bb7 {[%clk 0:02:56]} 3. Bd3 {[%clk 0:02:49]}  Nf6 {[%clk 0:02:55]} 4. Qe2 {[%clk 0:02:48]}  e6 {[%clk 0:02:55]} 5. c3 {[%clk 0:02:46]}  d5 {[%clk 0:02:56]} 6. e5 {[%clk 0:02:46]}  Nfd7 {[%clk 0:02:56]} 7. f4 {[%clk 0:02:46]}  c5 {[%clk 0:02:57]} 8. Nf3 {[%clk 0:02:46]}  Nc6 {[%clk 0:02:57]} 9. a3 {[%clk 0:02:38]}  g6 {[%clk 0:02:57]} 10. O-O {[%clk 0:02:35]}  Bg7 {[%clk 0:02:42]} 11. g4 {[%clk 0:02:26]}  O-O {[%clk 0:02:27]} 12. f5 {[%clk 0:02:23]}  cxd4 {[%clk 0:02:24]} 13. f6 {[%clk 0:02:15]}  Nxf6 {[%clk 0:02:24]} 14. exf6 {[%clk 0:02:13]}  Bxf6 {[%clk 0:02:25]} 15. cxd4 {[%clk 0:02:08]}  Nxd4 {[%clk 0:02:25]} 16. Nxd4 {[%clk 0:02:07]}  Bxd4+ {[%clk 0:02:26]} 17. Be3 {[%clk 0:02:06]}  Bg7 {[%clk 0:02:24]} 18. Ba6 {[%clk 0:01:48]}  Bxa6 {[%clk 0:02:24]} 19. Qxa6 {[%clk 0:01:47]}  Bxb2 {[%clk 0:02:25]} 20. Ra2 {[%clk 0:01:33]}  Bg7 {[%clk 0:02:25]} 21. Raf2 {[%clk 0:01:28]}  e5 {[%clk 0:02:20]} 22. Bd2 {[%clk 0:01:20]}  Qd7 {[%clk 0:02:18]} 23. Qe2 {[%clk 0:01:12]}  a5 {[%clk 0:02:04]} 24. Bg5 {[%clk 0:01:10]}  Rae8 {[%clk 0:01:55]} 25. Bf6 {[%clk 0:01:09]}  Bxf6 {[%clk 0:01:52]} 26. Rxf6 {[%clk 0:01:10]}  Re6 {[%clk 0:01:53]} 27. Nc3 {[%clk 0:00:50]}  e4 {[%clk 0:01:46]} 28. g5 {[%clk 0:00:42]}  Re5 {[%clk 0:01:38]} 29. h4 {[%clk 0:00:35]}  Qh3 {[%clk 0:01:37]} 30. Qe1 {[%clk 0:00:22]}  h6 {[%clk 0:01:18]} 31. gxh6 {[%clk 0:00:18]}  Rh5 {[%clk 0:01:18]} 32. Ne2 {[%clk 0:00:16]}  Rxh4 {[%clk 0:01:16]} 33. Qg3 {[%clk 0:00:14]}  Rg4 {[%clk 0:01:16]} 34. Kf2 {[%clk 0:00:13]} 0-1


[Site "https://www.chess.com"]

[Event "Titled Tuesday Blitz April 25 Early 2023"]
[White "Arat, Ufuk Sezen"]
[Black "Seo, Jung Min"]
[WhiteFideId "6309089"]
[BlackFideId "1734687"]
[WhiteElo "2289"]
[BlackElo "2468"]
[Result "1-0"]
[Round "09"]
[TimeControl "180+2"]
[Date "2023.04.25"]
[WhiteClock "0:02:21"]
[BlackClock "0:02:04"]

1. e4 {[%clk 0:02:56]}  e5 {[%clk 0:02:59]} 2. Nf3 {[%clk 0:02:57]}  Nc6 {[%clk 0:02:59]} 3. c3 {[%clk 0:02:57]}  Nf6 {[%clk 0:02:51]} 4. d4 {[%clk 0:02:57]}  Nxe4 {[%clk 0:02:51]} 5. d5 {[%clk 0:02:57]}  Ne7 {[%clk 0:02:50]} 6. Nxe5 {[%clk 0:02:49]}  Ng6 {[%clk 0:02:50]} 7. Nxg6 {[%clk 0:02:49]}  hxg6 {[%clk 0:02:49]} 8. Nd2 {[%clk 0:02:47]}  Nxd2 {[%clk 0:02:48]} 9. Bxd2 {[%clk 0:02:48]}  Bc5 {[%clk 0:02:48]} 10. Bd3 {[%clk 0:02:45]}  d6 {[%clk 0:02:48]} 11. Qf3 {[%clk 0:02:43]}  Qe7+ {[%clk 0:02:47]} 12. Kf1 {[%clk 0:02:42]}  Qf6 {[%clk 0:02:44]} 13. Re1+ {[%clk 0:02:39]}  Kf8 {[%clk 0:02:39]} 14. Qxf6 {[%clk 0:02:39]}  gxf6 {[%clk 0:02:39]} 15. b4 {[%clk 0:02:39]}  Bb6 {[%clk 0:02:39]} 16. h4 {[%clk 0:02:36]}  a5 {[%clk 0:02:38]} 17. b5 {[%clk 0:02:34]}  Bd7 {[%clk 0:02:31]} 18. c4 {[%clk 0:02:34]}  Bc5 {[%clk 0:02:29]} 19. Bc3 {[%clk 0:02:31]}  Bb4 {[%clk 0:02:24]} 20. Bxf6 {[%clk 0:02:27]}  Bxe1 {[%clk 0:02:12]} 21. Bxh8 {[%clk 0:02:26]}  Bb4 {[%clk 0:02:12]} 22. Bf6 {[%clk 0:02:23]}  c6 {[%clk 0:02:04]} 23. h5 {[%clk 0:02:21]} 1-0


[Site "https://www.chess.com"]

[Event "Titled Tuesday Blitz April 25 Early 2023"]
[White "Bochnicka, Vladimir"]
[Black "Kim, Sergey"]
[WhiteFideId "14943450"]
[BlackFideId "13700570"]
[WhiteElo "2094"]
[BlackElo "2655"]
[Result "1/2-1/2"]
[Round "09"]
[TimeControl "180+2"]
[Date "2023.04.25"]
[WhiteClock "0:00:05"]
[BlackClock "0:00:12"]

1. e4 {[%clk 0:02:37]}  e5 {[%clk 0:02:59]} 2. Nf3 {[%clk 0:02:37]}  Nc6 {[%clk 0:03:00]} 3. Bc4 {[%clk 0:02:38]}  Bc5 {[%clk 0:02:59]} 4. c3 {[%clk 0:02:37]}  Nf6 {[%clk 0:02:59]} 5. d3 {[%clk 0:02:37]}  d6 {[%clk 0:02:59]} 6. Nbd2 {[%clk 0:02:38]}  a6 {[%clk 0:02:59]} 7. Bb3 {[%clk 0:02:38]}  Ba7 {[%clk 0:02:59]} 8. Nf1 {[%clk 0:02:38]}  Be6 {[%clk 0:02:53]} 9. Ng3 {[%clk 0:02:38]}  h6 {[%clk 0:02:52]} 10. O-O {[%clk 0:02:37]}  O-O {[%clk 0:02:51]} 11. h3 {[%clk 0:02:34]}  Re8 {[%clk 0:02:47]} 12. Re1 {[%clk 0:02:32]}  Ne7 {[%clk 0:02:40]} 13. Nh4 {[%clk 0:02:31]}  Ng6 {[%clk 0:02:37]} 14. Nhf5 {[%clk 0:02:04]}  Kh7 {[%clk 0:02:19]} 15. Nh5 {[%clk 0:01:42]}  Nxh5 {[%clk 0:02:14]} 16. Qxh5 {[%clk 0:01:43]}  Nf4 {[%clk 0:01:42]} 17. Bxf4 {[%clk 0:01:00]}  exf4 {[%clk 0:01:42]} 18. d4 {[%clk 0:00:31]}  Qg5 {[%clk 0:01:30]} 19. Qxg5 {[%clk 0:00:26]}  hxg5 {[%clk 0:01:30]} 20. Bc2 {[%clk 0:00:10]}  g6 {[%clk 0:01:13]} 21. d5 {[%clk 0:00:10]}  Bd7 {[%clk 0:01:14]} 22. Nd4 {[%clk 0:00:10]}  Kg7 {[%clk 0:01:13]} 23. Rad1 {[%clk 0:00:07]}  g4 {[%clk 0:01:03]} 24. hxg4 {[%clk 0:00:07]}  Bxg4 {[%clk 0:01:04]} 25. f3 {[%clk 0:00:07]}  Bd7 {[%clk 0:01:04]} 26. Kf2 {[%clk 0:00:05]}  Rh8 {[%clk 0:01:01]} 27. Rh1 {[%clk 0:00:05]}  Kf6 {[%clk 0:01:01]} 28. b4 {[%clk 0:00:03]}  Ke5 {[%clk 0:00:59]} 29. Rxh8 {[%clk 0:00:01]}  Rxh8 {[%clk 0:00:58]} 30. Kg1 {[%clk 0:00:02]}  c5 {[%clk 0:00:49]} 31. dxc6 {[%clk 0:00:01]}  bxc6 {[%clk 0:00:49]} 32. g3 {[%clk 0:00:01]}  fxg3 {[%clk 0:00:47]} 33. Kg2 {[%clk 0:00:02]}  Rh3 {[%clk 0:00:39]} 34. Nxc6+ {[%clk 0:00:02]}  Bxc6 {[%clk 0:00:36]} 35. Kxh3 {[%clk 0:00:02]}  Bf2 {[%clk 0:00:35]} 36. Kg2 {[%clk 0:00:02]}  Bb5 {[%clk 0:00:33]} 37. Bb3 {[%clk 0:00:03]}  Kf4 {[%clk 0:00:31]} 38. c4 {[%clk 0:00:03]}  Bd7 {[%clk 0:00:30]} 39. Rxd6 {[%clk 0:00:04]}  Be6 {[%clk 0:00:30]} 40. c5 {[%clk 0:00:04]}  a5 {[%clk 0:00:26]} 41. bxa5 {[%clk 0:00:03]}  Bxc5 {[%clk 0:00:26]} 42. Rd8 {[%clk 0:00:03]}  Be7 {[%clk 0:00:21]} 43. Re8 {[%clk 0:00:03]}  Bb4 {[%clk 0:00:19]} 44. Bxe6 {[%clk 0:00:03]}  fxe6 {[%clk 0:00:20]} 45. Rxe6 {[%clk 0:00:03]}  Bxa5 {[%clk 0:00:19]} 46. Rxg6 {[%clk 0:00:04]}  Bc7 {[%clk 0:00:18]} 47. Rxg3 {[%clk 0:00:03]}  Ke3 {[%clk 0:00:17]} 48. Rg7 {[%clk 0:00:04]}  Be5 {[%clk 0:00:17]} 49. a4 {[%clk 0:00:04]}  Bxg7 {[%clk 0:00:17]} 50. a5 {[%clk 0:00:04]}  Kf4 {[%clk 0:00:16]} 51. a6 {[%clk 0:00:04]}  Bd4 {[%clk 0:00:16]} 52. Kh3 {[%clk 0:00:02]}  Kg5 {[%clk 0:00:14]} 53. e5 {[%clk 0:00:02]}  Kf5 {[%clk 0:00:13]} 54. f4 {[%clk 0:00:03]}  Ba7 {[%clk 0:00:12]} 55. Kg3 {[%clk 0:00:03]}  Bb8 {[%clk 0:00:12]} 56. Kf3 {[%clk 0:00:03]}  Ba7 {[%clk 0:00:13]} 57. Kg3 {[%clk 0:00:03]}  Bb8 {[%clk 0:00:13]} 58. Kf3 {[%clk 0:00:03]}  Ba7 {[%clk 0:00:13]} 59. e6 {[%clk 0:00:03]}  Kxe6 {[%clk 0:00:13]} 60. Ke4 {[%clk 0:00:03]}  Kf6 {[%clk 0:00:13]} 61. Kd5 {[%clk 0:00:03]}  Kf5 {[%clk 0:00:12]} 62. Kc6 {[%clk 0:00:04]}  Kxf4 {[%clk 0:00:12]} 63. Kb7 {[%clk 0:00:05]}  Bd4 {[%clk 0:00:12]} 64. a7 {[%clk 0:00:05]}  Bxa7 {[%clk 0:00:12]} 1/2-1/2


[Site "https://www.chess.com"]

[Event "Titled Tuesday Blitz April 25 Early 2023"]
[White "Bodnaruk, Anastasia"]
[Black "Hambleton, Aman"]
[WhiteFideId "4181751"]
[BlackFideId "2606577"]
[WhiteElo "2310"]
[BlackElo "2511"]
[Result "1-0"]
[Round "09"]
[TimeControl "180+2"]
[Date "2023.04.25"]
[WhiteClock "0:00:12"]
[BlackClock "0:00:01"]

1. e4 {[%clk 0:02:57]}  b6 {[%clk 0:03:00]} 2. d4 {[%clk 0:02:56]}  Bb7 {[%clk 0:03:00]} 3. Nc3 {[%clk 0:02:56]}  e6 {[%clk 0:02:59]} 4. f4 {[%clk 0:02:56]}  Bb4 {[%clk 0:02:59]} 5. Bd3 {[%clk 0:02:53]}  f5 {[%clk 0:02:59]} 6. Qe2 {[%clk 0:02:42]}  Nf6 {[%clk 0:02:59]} 7. e5 {[%clk 0:02:40]}  Ne4 {[%clk 0:02:58]} 8. Bxe4 {[%clk 0:02:28]}  Bxc3+ {[%clk 0:02:57]} 9. bxc3 {[%clk 0:02:28]}  Bxe4 {[%clk 0:02:58]} 10. Nf3 {[%clk 0:02:23]}  O-O {[%clk 0:02:58]} 11. c4 {[%clk 0:02:07]}  Nc6 {[%clk 0:02:56]} 12. c3 {[%clk 0:02:04]}  h6 {[%clk 0:02:51]} 13. Nd2 {[%clk 0:01:59]}  Qh4+ {[%clk 0:02:49]} 14. g3 {[%clk 0:01:56]}  Qh3 {[%clk 0:02:49]} 15. Nxe4 {[%clk 0:01:56]}  fxe4 {[%clk 0:02:49]} 16. Qxe4 {[%clk 0:01:38]}  Na5 {[%clk 0:02:50]} 17. Qe2 {[%clk 0:01:36]}  Rf5 {[%clk 0:02:34]} 18. Be3 {[%clk 0:01:31]}  g5 {[%clk 0:02:24]} 19. Kd2 {[%clk 0:01:21]}  Raf8 {[%clk 0:02:13]} 20. Rag1 {[%clk 0:01:14]}  Kh7 {[%clk 0:02:00]} 21. Kc2 {[%clk 0:00:49]}  R5f7 {[%clk 0:01:41]} 22. Kb2 {[%clk 0:00:48]}  Qf5 {[%clk 0:01:38]} 23. Bc1 {[%clk 0:00:46]}  g4 {[%clk 0:01:13]} 24. h3 {[%clk 0:00:44]}  Rg8 {[%clk 0:01:14]} 25. hxg4 {[%clk 0:00:44]}  Rxg4 {[%clk 0:01:14]} 26. Rh3 {[%clk 0:00:38]}  Rfg7 {[%clk 0:00:45]} 27. Bd2 {[%clk 0:00:32]}  R7g6 {[%clk 0:00:35]} 28. Ka1 {[%clk 0:00:31]}  Qc2 {[%clk 0:00:13]} 29. f5 {[%clk 0:00:21]}  Qxf5 {[%clk 0:00:09]} 30. Rgh1 {[%clk 0:00:21]}  Rxg3 {[%clk 0:00:06]} 31. Rxh6+ {[%clk 0:00:21]}  Rxh6 {[%clk 0:00:06]} 32. Rxh6+ {[%clk 0:00:21]}  Kg7 {[%clk 0:00:06]} 33. Qh2 {[%clk 0:00:20]}  Qd3 {[%clk 0:00:02]} 34. Rf6 {[%clk 0:00:14]}  Rg6 {[%clk 0:00:01]} 35. Bh6+ {[%clk 0:00:12]}  Kg8 {[%clk 0:00:01]} 36. Rf8+ {[%clk 0:00:12]}  Kh7 {[%clk 0:00:02]} 37. Bg5+ {[%clk 0:00:12]}  Rh6 {[%clk 0:00:01]} 38. Qxh6# {[%clk 0:00:12]} 1-0


[Site "https://www.chess.com"]

[Event "Titled Tuesday Blitz April 25 Early 2023"]
[White "Csonka, Balazs"]
[Black "Dzagnidze, Nana"]
[WhiteFideId "742910"]
[BlackFideId "13601903"]
[WhiteElo "2404"]
[BlackElo "2406"]
[Result "0-1"]
[Round "09"]
[TimeControl "180+2"]
[Date "2023.04.25"]
[WhiteClock "0:00:01"]
[BlackClock "0:00:03"]

1. e4 {[%clk 0:03:00]}  c5 {[%clk 0:02:59]} 2. Nf3 {[%clk 0:03:00]}  d6 {[%clk 0:02:59]} 3. d4 {[%clk 0:02:54]}  cxd4 {[%clk 0:03:00]} 4. Nxd4 {[%clk 0:02:55]}  Nf6 {[%clk 0:03:00]} 5. Nc3 {[%clk 0:02:55]}  a6 {[%clk 0:03:00]} 6. h3 {[%clk 0:02:42]}  e5 {[%clk 0:02:58]} 7. Nb3 {[%clk 0:02:42]}  h5 {[%clk 0:02:59]} 8. Be3 {[%clk 0:02:22]}  Be6 {[%clk 0:02:58]} 9. Qf3 {[%clk 0:02:21]}  Nbd7 {[%clk 0:02:57]} 10. O-O-O {[%clk 0:02:21]}  Rc8 {[%clk 0:02:56]} 11. Nd5 {[%clk 0:02:20]}  Bxd5 {[%clk 0:02:28]} 12. exd5 {[%clk 0:02:20]}  Be7 {[%clk 0:02:25]} 13. Kb1 {[%clk 0:02:01]}  b5 {[%clk 0:02:06]} 14. Bd3 {[%clk 0:01:43]}  h4 {[%clk 0:01:37]} 15. Bd2 {[%clk 0:01:20]}  e4 {[%clk 0:01:19]} 16. Bxe4 {[%clk 0:01:16]}  Ne5 {[%clk 0:01:20]} 17. Qe2 {[%clk 0:01:16]}  Nxe4 {[%clk 0:01:17]} 18. Qxe4 {[%clk 0:01:15]}  O-O {[%clk 0:01:17]} 19. Nd4 {[%clk 0:00:59]}  Bf6 {[%clk 0:01:14]} 20. Nc6 {[%clk 0:00:55]}  Nxc6 {[%clk 0:01:10]} 21. dxc6 {[%clk 0:00:56]}  d5 {[%clk 0:01:08]} 22. Qf5 {[%clk 0:00:50]}  Re8 {[%clk 0:01:03]} 23. Bf4 {[%clk 0:00:42]}  Rxc6 {[%clk 0:00:59]} 24. Rxd5 {[%clk 0:00:38]}  Qe7 {[%clk 0:00:59]} 25. Be3 {[%clk 0:00:29]}  Qb4 {[%clk 0:00:53]} 26. Bc1 {[%clk 0:00:24]}  Re2 {[%clk 0:00:40]} 27. Rhd1 {[%clk 0:00:13]}  g6 {[%clk 0:00:39]} 28. Qd3 {[%clk 0:00:10]}  Rcxc2 {[%clk 0:00:26]} 29. Qxc2 {[%clk 0:00:10]}  Rxc2 {[%clk 0:00:26]} 30. Kxc2 {[%clk 0:00:11]}  Qe4+ {[%clk 0:00:26]} 31. R1d3 {[%clk 0:00:04]}  Qxg2 {[%clk 0:00:26]} 32. Rd6 {[%clk 0:00:04]}  Qxf2+ {[%clk 0:00:21]} 33. Bd2 {[%clk 0:00:04]}  Qc5+ {[%clk 0:00:15]} 34. Kb1 {[%clk 0:00:03]}  Qf5 {[%clk 0:00:13]} 35. Kc2 {[%clk 0:00:03]}  Kg7 {[%clk 0:00:11]} 36. Rxa6 {[%clk 0:00:03]}  Qe5 {[%clk 0:00:08]} 37. Bc3 {[%clk 0:00:01]}  Qe2+ {[%clk 0:00:08]} 38. Bd2 {[%clk 0:00:01]}  Qe4 {[%clk 0:00:07]} 39. Rd6 {[%clk 0:00:01]}  g5 {[%clk 0:00:06]} 40. b3 {[%clk 0:00:01]}  Qf5 {[%clk 0:00:05]} 41. Rd5 {[%clk 0:00:01]}  Qe4 {[%clk 0:00:03]} 42. Kd1 {[%clk 0:00:01]}  Qh1+ {[%clk 0:00:02]} 43. Kc2 {[%clk 0:00:01]}  Qe4 {[%clk 0:00:03]} 44. Rxb5 {[%clk 0:00:01]}  g4 {[%clk 0:00:03]} 45. hxg4 {[%clk 0:00:01]}  h3 {[%clk 0:00:03]} 0-1


[Site "https://www.chess.com"]

[Event "Titled Tuesday Blitz April 25 Early 2023"]
[White "Starozhilov, Leonid"]
[Black "Vestby-Ellingsen, Mads"]
[WhiteFideId "14106752"]
[BlackFideId "1520857"]
[WhiteElo "2352"]
[BlackElo "2246"]
[Result "1-0"]
[Round "09"]
[TimeControl "180+2"]
[Date "2023.04.25"]
[WhiteClock "0:00:09"]
[BlackClock "0:00:01"]

1. b3 {[%clk 0:03:00]}  a5 {[%clk 0:02:58]} 2. Bb2 {[%clk 0:02:58]}  a4 {[%clk 0:02:58]} 3. Nf3 {[%clk 0:02:57]}  h5 {[%clk 0:02:58]} 4. e3 {[%clk 0:02:55]}  h4 {[%clk 0:02:58]} 5. h3 {[%clk 0:02:55]}  e6 {[%clk 0:02:56]} 6. c4 {[%clk 0:02:54]}  Nf6 {[%clk 0:02:52]} 7. d3 {[%clk 0:02:52]}  d5 {[%clk 0:02:46]} 8. Be2 {[%clk 0:02:50]}  Bd6 {[%clk 0:02:38]} 9. Nbd2 {[%clk 0:02:45]}  a3 {[%clk 0:02:36]} 10. Bc3 {[%clk 0:02:44]}  Qe7 {[%clk 0:02:35]} 11. O-O {[%clk 0:02:42]}  e5 {[%clk 0:02:33]} 12. c5 {[%clk 0:02:34]}  Bxc5 {[%clk 0:02:31]} 13. Nxe5 {[%clk 0:02:28]}  Bd6 {[%clk 0:02:28]} 14. d4 {[%clk 0:02:16]}  Nbd7 {[%clk 0:02:23]} 15. f4 {[%clk 0:02:09]}  c6 {[%clk 0:02:20]} 16. Bf3 {[%clk 0:02:06]}  Nf8 {[%clk 0:02:14]} 17. Rc1 {[%clk 0:02:04]}  Bf5 {[%clk 0:02:11]} 18. Re1 {[%clk 0:02:00]}  Ne6 {[%clk 0:02:09]} 19. Qe2 {[%clk 0:01:51]}  g5 {[%clk 0:02:04]} 20. e4 {[%clk 0:01:42]}  Nxf4 {[%clk 0:01:49]} 21. Qe3 {[%clk 0:01:38]}  dxe4 {[%clk 0:01:45]} 22. Nxe4 {[%clk 0:01:35]}  Nxe4 {[%clk 0:01:41]} 23. Bxe4 {[%clk 0:01:35]}  Bxe4 {[%clk 0:01:41]} 24. Qxe4 {[%clk 0:01:36]}  Bxe5 {[%clk 0:01:30]} 25. Qf5 {[%clk 0:01:17]}  Ng6 {[%clk 0:01:09]} 26. dxe5 {[%clk 0:01:13]}  Qe6 {[%clk 0:00:59]} 27. Qxg5 {[%clk 0:01:13]}  Rg8 {[%clk 0:00:59]} 28. Rcd1 {[%clk 0:01:11]}  Ne7 {[%clk 0:00:52]} 29. Qxh4 {[%clk 0:00:59]}  Nd5 {[%clk 0:00:51]} 30. Bd2 {[%clk 0:00:38]}  Kd7 {[%clk 0:00:47]} 31. Bg5 {[%clk 0:00:38]}  Rg6 {[%clk 0:00:45]} 32. Bf6 {[%clk 0:00:27]}  Rag8 {[%clk 0:00:42]} 33. Rd2 {[%clk 0:00:27]}  Kc7 {[%clk 0:00:38]} 34. Red1 {[%clk 0:00:15]}  Ne3 {[%clk 0:00:25]} 35. Rd7+ {[%clk 0:00:13]}  Qxd7 {[%clk 0:00:12]} 36. Rxd7+ {[%clk 0:00:14]}  Kxd7 {[%clk 0:00:13]} 37. Qd4+ {[%clk 0:00:14]}  Nd5 {[%clk 0:00:13]} 38. g4 {[%clk 0:00:13]}  Rh6 {[%clk 0:00:07]} 39. Kg2 {[%clk 0:00:12]}  Kc8 {[%clk 0:00:06]} 40. Qa7 {[%clk 0:00:09]}  Kc7 {[%clk 0:00:03]} 41. Qa5+ {[%clk 0:00:08]}  Nb6 {[%clk 0:00:03]} 42. Be7 {[%clk 0:00:06]}  c5 {[%clk 0:00:02]} 43. Bxc5 {[%clk 0:00:05]}  Kc6 {[%clk 0:00:02]} 44. Qxb6+ {[%clk 0:00:05]}  Kd5 {[%clk 0:00:02]} 45. Qxh6 {[%clk 0:00:05]}  Kxe5 {[%clk 0:00:01]} 46. Qd6+ {[%clk 0:00:06]}  Ke4 {[%clk 0:00:01]} 47. Qe7+ {[%clk 0:00:07]}  Kd3 {[%clk 0:00:02]} 48. Qxf7 {[%clk 0:00:07]}  Ra8 {[%clk 0:00:01]} 49. Qf5+ {[%clk 0:00:08]}  Kd2 {[%clk 0:00:01]} 50. Qd5+ {[%clk 0:00:08]}  Kc1 {[%clk 0:00:01]} 51. Qxb7 {[%clk 0:00:09]}  Rh8 {[%clk 0:00:01]} 52. Bxa3+ {[%clk 0:00:09]}  Kb1 {[%clk 0:00:01]} 53. Qg7 {[%clk 0:00:09]} 1-0


[Site "https://www.chess.com"]